bitfinex/quotes_ETHUSD_20240828
["timestamp","ask_amount","ask_price","bid_price","bid_amount"]
[1724853634754,4.01284,2492.0,2490.8,4.01473]
[1724853634755,8.02568,2492.0,2490.8,4.01473]
[1724853635018,8.02568,2492.0,2490.0,0.647492]
[1724853635019,4.01445,2491.0,2490.9,2.4131]
[1724853635357,8.0289,2491.0,2490.9,2.4131]
[1724853635483,8.0289,2491.0,2489.3,4.01718]
[1724853635484,4.01547,2490.4,2490.1,2.475]
[1724853635683,4.0156,2490.3,2490.1,2.475]
[1724853635883,4.01487,2490.8,2490.1,2.475]
[1724853636084,4.01489,2490.8,2490.1,2.475]
[1724853636285,4.01499,2490.7,2490.1,2.475]
[1724853636541,4.01574,2490.2,2490.1,2.475]
[1724853636884,4.01488,2490.8,2490.1,2.475]
[1724853637082,4.01574,2490.2,2490.1,2.475]
[1724853637282,4.01651,2489.8,2489.5,2.4624]
[1724853637486,3.0,2490.7,2489.5,2.4624]
[1724853637487,4.01664,2489.7,2489.5,2.4624]
[1724853637927,4.01626,2489.9,2489.5,2.4624]
[1724853637928,4.01592,2490.1,2489.6,0.06404411]
[1724853638434,4.01654,2489.8,2489.6,0.06404411]
[1724853638636,4.01654,2489.7,2489.6,0.06404411]
[1724853638989,8.03308,2489.7,2489.6,0.06404411]
[1724853639432,8.03534,2489.0,2488.9,2.4637]
[1724853639634,2.58713596,2490.5,2487.4,0.452004]
[1724853639635,3.0,2489.5,2488.1,0.08036524]
[1724853639844,4.01719,2489.3,2488.2,2.4637]
[1724853639991,2.60505263,2490.5,2488.9,2.4637]
[1724853639992,4.01645,2489.8,2488.9,2.4637]
[1724853640190,3.0,2490.3,2489.0,4.665827]
[1724853640390,3.3746193,2490.3,2489.0,0.06438215]
[1724853640613,0.45669991,2490.9,2489.0,0.06438215]
[1724853640614,4.01751,2489.1,2489.0,0.06438215]
[1724853640826,8.03502,2489.1,2489.0,0.06438215]
[1724853641134,8.03502,2489.1,2488.4,2.4637]
[1724853641135,4.01848,2488.5,2488.4,2.4637]
[1724853641320,4.01701,2489.5,2488.4,2.4637]
[1724853641321,4.0177,2489.0,2488.4,2.4637]
[1724853641524,4.01695,2489.5,2488.8,4.01796]
[1724853641838,4.01744,2489.2,2488.4,2.69043322]
[1724853642133,4.01715,2489.4,2488.5,4.36971399]
[1724853642336,3.0,2489.8,2488.6,0.68137772]
[1724853642337,4.01735,2489.2,2488.6,0.68137772]
[1724853642488,0.08036329,2489.1,2488.5,0.271007]
[1724853642688,4.01591,2490.1,2489.1,4.01747]
[1724853642901,4.01591,2490.1,2488.5,0.271007]
[1724853642902,4.01656,2489.7,2489.2,0.401747]
[1724853643102,4.0172,2489.3,2488.3,4.0187]
[1724853643339,0.08036329,2489.2,2488.3,4.0187]
[1724853643574,0.08036329,2489.3,2487.8,0.88329482]
[1724853643709,0.08036329,2489.3,2488.6,4.0183]
[1724853643903,4.01747,2489.2,2488.3,4.01879]
[1724853644126,4.01747,2489.2,2487.9,4.56941]
[1724853644127,0.08036329,2489.3,2487.9,4.56941]
[1724853644333,4.01752,2489.1,2488.1,4.01909]
[1724853644651,4.01763,2489.1,2488.3,4.01868]
[1724853644806,4.01784,2488.9,2488.3,2.3857]
[1724853645002,0.08036329,2489.0,2488.3,7.044956]
[1724853645309,4.09812329,2489.0,2488.3,2.3857]
[1724853645509,4.0172,2489.3,2488.5,4.01846]
[1724853645720,0.08036329,2489.6,2488.6,0.40988246]
[1724853645926,4.01752,2489.1,2488.3,6.40443]
[1724853646144,4.09805329,2489.0,2488.3,2.3857]
[1724853646445,4.01864,2488.4,2488.3,2.3857]
[1724853646614,4.09900329,2488.4,2488.3,2.3857]
[1724853646817,7.01718,2489.4,2488.3,2.3857]
[1724853646818,0.3831193,2489.6,2488.3,2.3857]
[1724853647045,4.01818,2488.7,2488.3,2.62427]
[1724853647339,4.01818,2488.7,2488.4,0.06539558]
[1724853647716,0.08036329,2488.8,2488.4,0.06539558]
[1724853647919,3.0,2489.1,2488.4,0.06539558]
[1724853647920,4.01756,2489.1,2488.4,0.14576142]
[1724853648123,4.01773,2489.0,2488.4,0.80077656]
[1724853648505,4.01784,2488.9,2488.4,0.72041072]
[1724853648741,0.08036329,2489.0,2488.4,0.06539558]
[1724853648945,4.01615,2490.0,2488.5,2.4729]
[1724853649144,4.01615,2490.0,2488.4,0.06539558]
[1724853649145,4.01645,2489.8,2488.6,0.3341699]
[1724853649443,0.08036329,2489.7,2488.8,4.01786]
[1724853649651,4.01746,2489.2,2488.7,2.4729]
[1724853649853,4.01746,2489.2,2487.6,7.01983]
[1724853649854,4.01676,2489.6,2488.9,0.06511372]
[1724853650059,4.01676,2489.6,2487.2,4.52651452]
[1724853650060,12.05349,2488.9,2488.8,0.06517009]
[1724853650221,4.01961,2487.8,2487.7,2.3789]
[1724853650622,4.01961,2487.8,2487.7,2.44249303]
[1724853650824,4.01946,2487.9,2487.7,2.44249303]
[1724853651024,4.01916,2488.1,2487.7,2.44249303]
[1724853651025,4.09952329,2488.1,2487.7,2.44249303]
[1724853651357,7.01853,2488.5,2487.7,2.44249303]
[1724853651358,8.03922,2487.8,2487.7,0.06359303]
[1724853651652,8.11958329,2487.8,2487.7,0.06359303]
[1724853651851,4.01932,2488.0,2487.3,0.08040607]
[1724853652037,4.01795,2488.9,2487.3,0.08040607]
[1724853652038,3.0,2488.4,2487.3,0.08040607]
[1724853652240,4.01909,2488.2,2487.5,4.01999]
[1724853652423,0.08036329,2488.3,2487.6,4.421799]
[1724853652753,7.01803,2488.8,2487.8,2.3386]
[1724853652754,4.01837,2488.6,2487.8,2.3386]
[1724853652956,4.01778,2489.0,2487.9,0.72424003]
[1724853653252,6.29427,2490.0,2488.0,2.3386]
[1724853653253,4.0182,2488.7,2488.0,2.3386]
[1724853653407,8.11687329,2488.7,2488.1,0.306284]
[1724853653749,4.0179,2488.9,2488.1,0.36965141]
[1724853654092,4.01829,2488.7,2488.1,0.06336741]
[1724853654255,4.01849,2488.5,2488.1,0.06336741]
[1724853654456,4.01874,2488.4,2488.1,0.06336741]
[1724853654756,4.01849,2488.5,2488.1,0.06336741]
[1724853654757,4.09885329,2488.5,2488.1,0.06336741]
[1724853654909,4.01772,2489.0,2488.1,0.06336741]
[1724853654910,4.01892,2488.3,2488.1,0.06336741]
[1724853655115,8.11828329,2488.2,2488.1,0.06336741]
[1724853655340,4.0187,2488.4,2488.1,0.06336741]
[1724853655673,3.0,2488.9,2488.1,4.40292873]
[1724853655674,3.08036329,2488.9,2488.1,4.40292873]
[1724853655857,4.01769,2489.0,2488.2,0.08036481]
[1724853656149,4.01764,2489.1,2488.3,4.0187]
[1724853656335,0.08036329,2489.1,2488.5,2.2701]
[1724853656520,0.08036329,2489.1,2488.6,0.08035826]
[1724853656720,4.01812,2488.8,2488.6,0.06308549]
[1724853656923,4.01816,2488.7,2488.6,0.06308549]
[1724853657136,0.08036329,2489.1,2488.6,0.06308549]
[1724853657310,4.01814,2488.8,2488.6,0.06308549]
[1724853657744,4.01775,2489.0,2488.6,0.06308549]
[1724853657971,0.38389096,2489.9,2488.6,0.06308549]
[1724853657972,0.08036329,2488.9,2488.6,0.06308549]
[1724853658155,4.01698,2489.5,2488.6,0.06308549]
[1724853658156,8.03632,2488.7,2488.6,0.06308549]
[1724853658327,4.01788,2488.9,2488.6,0.06308549]
[1724853658724,4.01757,2489.1,2488.6,0.06308549]
[1724853658937,0.38389096,2489.9,2488.7,4.01803]
[1724853658938,4.09743329,2489.4,2488.7,4.01803]
[1724853659275,4.01707,2489.4,2488.6,4.31461404]
[1724853659568,4.0172,2489.3,2488.7,0.72169025]
[1724853659765,4.01706,2489.4,2488.7,0.72169025]
[1724853659766,4.01706,2489.4,2488.7,4.73985025]
[1724853659928,4.01706,2489.4,2488.8,4.91711288]
[1724853660136,4.01678,2489.6,2488.8,4.91711288]
[1724853660137,4.01678,2489.6,2488.9,4.01771]
[1724853660342,0.08036329,2490.1,2489.0,6.58665915]
[1724853660666,0.08036329,2490.1,2489.0,3.46261622]
[1724853660667,4.01689,2489.5,2489.0,3.46261622]
[1724853660887,0.08036329,2490.1,2489.5,4.01676]
[1724853661086,2.2623,2491.2,2489.1,0.06299341]
[1724853661087,4.015,2490.7,2490.1,4.01587]
[1724853661376,4.01471,2490.9,2490.2,7.02728211]
[1724853661528,0.06954483,2491.7,2490.2,2.52977384]
[1724853661529,4.09520329,2490.8,2490.2,2.52977384]
[1724853661728,4.46687579,2491.7,2490.3,0.08030127]
[1724853661729,4.01452,2491.0,2490.3,0.08030127]
[1724853661931,0.08036329,2490.9,2490.3,0.08030127]
[1724853662186,4.01419,2491.2,2490.5,4.01513]
[1724853662332,0.41680478,2491.9,2490.8,2.3379]
[1724853662333,4.01353,2491.6,2490.8,2.3379]
[1724853662533,4.01332,2491.7,2491.0,4.01444]
[1724853662744,0.08036329,2492.3,2491.2,6.35199]
[1724853662745,4.01291,2492.0,2491.2,6.35199]
[1724853663083,4.01254,2492.2,2491.2,6.35202]
[1724853663084,4.013,2491.9,2491.2,6.35202]
[1724853663228,4.01252,2492.2,2491.3,0.06175481]
[1724853663428,4.09258329,2492.4,2491.3,4.15595958]
[1724853663638,4.01152,2492.9,2491.3,4.15595958]
[1724853663639,4.01154,2492.9,2491.7,6.35239]
[1724853663840,4.01097,2493.2,2492.4,4.01218]
[1724853664172,4.01059,2493.4,2491.8,0.71547111]
[1724853664173,4.09095329,2493.4,2492.6,2.3391]
[1724853664370,4.09079329,2493.5,2492.6,2.3391]
[1724853664579,0.38389096,2493.8,2492.7,0.1411838]
[1724853664779,4.00994,2493.8,2492.8,4.01153]
[1724853665090,4.00963,2494.0,2493.2,6.49909]
[1724853665389,0.08036329,2494.1,2493.2,6.49909]
[1724853665390,4.08986329,2494.1,2493.3,0.06063069]
[1724853665595,4.08986329,2494.1,2493.3,4.07136069]
[1724853665596,4.00963,2494.0,2493.3,4.07136069]
[1724853665736,0.08036329,2494.1,2493.3,4.07136069]
[1724853665936,4.08986329,2494.1,2493.3,4.07136069]
[1724853666174,4.00966,2494.0,2493.3,0.06063069]
[1724853666378,0.35928013,2494.2,2493.3,0.06063069]
[1724853666602,0.61312353,2494.6,2493.3,0.06063069]
[1724853666603,8.02116,2493.4,2493.3,0.06063069]
[1724853666743,4.01058,2493.4,2493.3,0.06063069]
[1724853666951,0.53276024,2494.3,2493.2,2.4882]
[1724853666952,4.09029329,2493.9,2493.2,2.4882]
[1724853667173,0.08036329,2494.2,2493.3,0.08009742]
[1724853667502,0.08036329,2494.2,2493.2,2.4882]
[1724853667503,4.08968329,2494.2,2493.2,2.4882]
[1724853667703,4.08968329,2494.2,2493.4,0.05321224]
[1724853667704,8.02084,2493.5,2493.4,0.05321224]
[1724853667835,8.02084,2493.5,2493.2,2.4882]
[1724853667836,4.01042,2493.5,2493.2,2.4882]
[1724853668037,4.01026,2493.6,2493.2,2.4882]
[1724853668260,4.00976,2494.0,2493.2,2.4882]
[1724853668261,4.01074,2493.3,2493.2,2.4882]
[1724853668578,4.01091,2493.2,2491.6,2.3636]
[1724853668785,4.01306,2491.9,2491.6,2.3636]
[1724853669131,4.01301,2491.9,2491.6,2.3636]
[1724853669575,3.08036329,2493.1,2491.7,0.0524084]
[1724853669576,4.01316,2491.8,2491.7,0.0524084]
[1724853669736,4.01244,2492.3,2491.7,0.1326699]
[1724853669936,4.01158,2492.8,2491.7,0.1326699]
[1724853669937,4.01254,2492.2,2491.7,0.1326699]
[1724853670138,4.01332,2491.7,2491.6,2.3636]
[1724853670740,4.01263,2492.2,2491.6,2.3636]
[1724853671065,4.01263,2492.2,2491.7,0.08025215]
[1724853671249,4.01104,2493.2,2491.7,0.08025215]
[1724853671250,4.01189,2492.6,2491.7,0.08025215]
[1724853671451,4.01249,2492.3,2491.7,0.34827336]
[1724853671684,4.01249,2492.3,2491.6,2.3636]
[1724853671980,4.01223,2492.4,2491.8,0.08024795]
[1724853672183,4.0116,2492.8,2492.1,2.3759]
[1724853672481,0.05,2494.7,2492.1,2.3759]
[1724853672482,4.01119,2493.1,2492.3,4.01229]
[1724853672681,4.01082,2493.3,2492.5,2.3759]
[1724853672884,4.01048,2493.5,2492.6,0.08021824]
[1724853673104,4.00991,2493.9,2492.6,0.08021824]
[1724853673105,0.08036329,2493.6,2492.6,0.08021824]
[1724853673263,4.01134,2493.0,2492.5,2.3759]
[1724853673464,4.01065,2493.4,2492.6,0.08022701]
[1724853673665,4.01051,2493.5,2492.6,0.08022701]
[1724853673666,4.01051,2493.5,2492.7,4.01171]
[1724853674005,4.01013,2493.7,2492.8,0.48940979]
[1724853674006,4.0106,2493.4,2492.8,0.48940979]
[1724853674300,4.011,2493.2,2492.5,2.3759]
[1724853674466,4.01061,2493.4,2492.7,4.01167]
[1724853674667,4.09031329,2493.8,2492.7,4.01167]
[1724853674868,4.01015,2493.7,2492.9,2.3266]
[1724853675113,4.00995,2493.8,2493.0,4.09128449]
[1724853675591,4.01029,2493.6,2493.0,4.09128449]
[1724853675794,0.5,2494.0,2492.9,2.3266]
[1724853675980,4.01103,2493.2,2492.9,2.3266]
[1724853676194,4.01095,2493.2,2492.9,2.3266]
[1724853677121,0.08036329,2493.3,2492.9,2.3266]
[1724853677403,4.0105,2493.5,2493.0,0.08023199]
[1724853677567,4.01102,2493.2,2492.9,2.3266]
[1724853677991,4.01102,2493.2,2493.0,0.05001729]
[1724853678377,4.01065,2493.4,2493.0,0.05001729]
[1724853678580,4.01032,2493.6,2493.0,0.05001729]
[1724853678916,0.5,2494.0,2493.0,0.05001729]
[1724853678917,4.01,2493.8,2493.2,4.01089]
[1724853679205,4.0101,2493.7,2493.3,0.13004875]
[1724853679511,4.01,2493.8,2493.3,0.13004875]
[1724853679723,4.01058,2493.4,2493.3,0.13004875]
[1724853679870,4.01098,2493.2,2492.9,2.3266]
[1724853680076,4.01107,2493.1,2493.0,0.05001729]
[1724853680520,8.02225,2493.1,2493.0,0.05001729]
[1724853680825,4.01086,2493.3,2493.0,0.05001729]
[1724853681031,12.03321,2493.1,2493.0,0.05001729]
[1724853681228,0.08036329,2493.2,2492.4,2.3664]
[1724853681229,4.01198,2492.6,2492.4,2.3664]
[1724853681583,8.024,2492.6,2492.5,0.0440788]
[1724853681789,4.01259,2492.2,2491.6,2.3747]
[1724853682012,4.01226,2492.4,2491.6,7.4683964]
[1724853682215,3.0,2493.2,2491.2,4.52651452]
[1724853682216,8.02399,2492.6,2491.7,4.84470556]
[1724853682427,4.01082,2493.3,2492.7,2.3747]
[1724853682727,4.0114,2492.9,2492.8,0.04391023]
[1724853682886,4.0114,2492.9,2492.7,2.3747]
[1724853682887,4.01069,2493.4,2492.7,2.3747]
[1724853683223,4.01093,2493.2,2492.7,2.3747]
[1724853683399,0.4087738,2494.3,2492.7,2.3747]
[1724853683400,4.50971,2494.0,2492.7,2.3747]
[1724853683601,4.01053,2493.5,2492.8,4.37331184]
[1724853683798,0.08036329,2493.9,2493.1,4.01093]
[1724853683799,8.10010329,2493.9,2493.1,4.01093]
[1724853683989,0.08036329,2493.9,2493.3,1.1943]
[1724853684320,4.01058,2493.4,2493.3,1.1943]
[1724853684525,4.5097,2494.0,2493.3,1.1943]
[1724853684696,4.5097,2494.0,2493.4,0.08019994]
[1724853684896,0.5,2494.0,2493.5,4.0103]
[1724853685130,4.50964,2494.0,2493.6,0.08019169]
[1724853685532,0.5,2494.0,2493.6,0.08019212]
[1724853685838,0.5,2494.0,2493.7,4.00996]
[1724853686019,0.5,2494.0,2493.8,0.08018525]
[1724853686218,0.5,2494.0,2493.7,0.40901521]
[1724853686399,0.5,2494.0,2493.4,0.520497]
[1724853686400,4.50971,2494.0,2493.4,0.520497]
[1724853686813,0.5,2494.0,2493.7,4.00999]
[1724853687000,0.5,2494.0,2493.9,2.4258]
[1724853687795,4.01005,2493.8,2493.2,2.4258]
[1724853687995,4.50966,2494.0,2493.4,4.01047]
[1724853688200,0.5,2494.0,2493.6,2.4258]
[1724853688431,0.5,2494.0,2493.9,4.00978]
[1724853688734,0.5,2494.0,2493.9,0.08017774]
[1724853689101,0.5,2494.0,2493.9,4.08995774]
[1724853689431,0.5,2494.0,2493.9,8.90972751]
[1724853689731,0.5,2494.0,2493.9,6.51575774]
[1724853690031,0.5,2494.0,2493.9,10.52553943]
[1724853690537,0.5,2494.0,2493.9,14.53531943]
[1724853690910,4.00743,2495.4,2494.7,4.00837]
[1724853691122,0.08036329,2495.5,2494.6,2.4129]
[1724853691304,4.00713,2495.6,2494.7,4.73069315]
[1724853691500,4.00713,2495.6,2494.7,4.00847]
[1724853691704,4.00713,2495.6,2494.9,4.00817]
[1724853691926,4.00678,2495.8,2495.0,0.08014172]
[1724853691927,4.00684,2495.8,2495.0,0.08014172]
[1724853692242,4.00707,2495.6,2495.0,0.400817]
[1724853692534,3.90684,2495.8,2495.1,0.08013969]
[1724853692733,4.00706,2495.6,2495.1,0.08013969]
[1724853693436,4.0074,2495.4,2494.7,8.01681]
[1724853693639,8.01429,2495.6,2494.8,0.08014598]
[1724853693847,4.00709,2495.6,2494.9,4.00816]
[1724853694035,4.4042421,2496.0,2494.6,6.42155]
[1724853694036,0.08036329,2495.5,2494.6,6.42155]
[1724853694341,4.00726,2495.5,2494.7,1.043029]
[1724853694503,4.00726,2495.5,2494.9,4.00802]
[1724853694840,0.08036329,2495.9,2494.6,2.4129]
[1724853694841,4.00795,2495.1,2494.6,2.4129]
[1724853695025,4.00739,2495.4,2494.7,0.08015643]
[1724853695226,4.0068,2495.8,2495.0,4.00789]
[1724853695426,4.0068,2495.8,2495.2,2.3122]
[1724853695627,0.08036329,2495.7,2495.2,2.3122]
[1724853695830,4.00742,2495.4,2495.2,2.3122]
[1724853696016,4.00631,2496.1,2495.2,2.3122]
[1724853696017,4.00715,2495.6,2495.2,2.3122]
[1724853696419,4.00676,2495.8,2495.3,0.08014126]
[1724853696615,4.00617,2496.2,2495.5,4.00719]
[1724853696835,4.00586,2496.4,2495.7,2.4427]
[1724853697035,4.00604,2496.3,2495.8,0.08011698]
[1724853697235,4.00518,2496.8,2495.7,2.4427]
[1724853697236,0.08036329,2496.2,2495.7,2.4427]
[1724853697441,4.00557,2496.6,2495.8,0.08012379]
[1724853697643,4.00518,2496.8,2496.0,4.0064]
[1724853697809,0.08036329,2496.9,2496.3,2.4427]
[1724853698003,4.00525,2496.8,2496.3,2.4427]
[1724853698211,4.00525,2496.8,2496.4,0.0382738]
[1724853698808,4.00532,2496.7,2496.4,0.0382738]
[1724853699012,4.00482,2497.0,2496.4,0.11837895]
[1724853699423,4.0042,2497.4,2496.4,0.11837895]
[1724853699424,4.00454,2497.2,2496.4,4.12410895]
[1724853699754,4.00454,2497.2,2496.6,4.00541]
[1724853699911,0.08036329,2497.3,2496.8,4.00511]
[1724853700110,0.35186543,2498.2,2497.2,4.00437]
[1724853700111,8.00688,2497.9,2497.2,4.00437]
[1724853700444,0.08036329,2498.2,2497.0,6.47967]
[1724853700445,0.08036329,2498.2,2497.4,4.00405]
[1724853700606,4.00306,2498.1,2497.4,4.00405]
[1724853700809,4.00278,2498.3,2497.7,2.4749]
[1724853701048,0.76818075,2498.9,2497.7,2.4749]
[1724853701049,4.00292,2498.2,2497.7,2.4749]
[1724853701251,0.08036329,2498.6,2497.7,2.4749]
[1724853701252,4.00281,2498.3,2497.8,0.04686244]
[1724853701547,4.00193,2498.8,2497.1,4.70459717]
[1724853701548,4.00331,2498.0,2497.2,2.4749]
[1724853701766,4.0038,2497.7,2497.2,2.94535972]
[1724853702056,4.00298,2498.2,2497.6,4.00371]
[1724853702205,4.00298,2498.2,2497.3,0.69498897]
[1724853702206,4.00235,2498.6,2497.9,4.00334]
[1724853702407,4.00268,2498.4,2497.7,4.00356]
[1724853702650,4.00268,2498.4,2497.8,4.08354105]
[1724853702852,0.4212821,2499.3,2497.2,4.00441]
[1724853703066,4.00316,2498.1,2497.4,4.00405]
[1724853703207,4.00316,2498.1,2497.1,2.3338]
[1724853703208,4.00304,2498.1,2497.1,2.3338]
[1724853703409,4.00358,2497.8,2497.1,2.3338]
[1724853703645,4.00358,2497.8,2497.2,4.00445]
[1724853703812,4.00358,2497.8,2497.1,6.3383]
[1724853704015,4.00358,2497.8,2497.2,0.08007224]
[1724853704217,0.08036329,2498.2,2497.2,0.08007224]
[1724853704218,0.08036329,2498.1,2497.5,4.00397]
[1724853704443,0.08036329,2498.1,2497.1,2.3338]
[1724853704629,4.00384,2497.6,2497.1,2.3338]
[1724853704825,0.08036329,2498.1,2497.1,2.967653]
[1724853705023,4.00311,2498.1,2497.4,4.00414]
[1724853705218,0.08036329,2498.4,2497.4,4.00406]
[1724853705424,0.08036329,2498.7,2497.7,2.2814]
[1724853705721,4.00229,2498.6,2497.7,2.2814]
[1724853705954,4.00229,2498.6,2497.8,4.00345]
[1724853706179,4.00261,2498.4,2497.8,4.00345]
[1724853706389,4.00201,2498.8,2498.2,4.00283]
[1724853706681,0.23267946,2500.3,2498.2,4.00283]
[1724853706682,4.00144,2499.1,2498.4,2.2814]
[1724853707089,0.08036329,2499.0,2498.4,2.2814]
[1724853707292,4.00252,2498.5,2497.9,2.3988]
[1724853707452,0.08036329,2499.2,2498.1,0.0800447]
[1724853707789,4.00125,2499.3,2498.5,4.00237]
[1724853707963,0.08036329,2499.2,2498.6,0.08003264]
[1724853708170,4.0013,2499.2,2498.7,2.3988]
[1724853708362,0.08036329,2499.2,2498.7,2.3988]
[1724853708684,4.00129,2499.2,2498.7,2.3988]
[1724853708991,4.00129,2499.2,2498.7,2.47882885]
[1724853709290,4.00128,2499.2,2498.7,2.3988]
[1724853709588,4.00114,2499.3,2498.7,2.3988]
[1724853709789,4.00145,2499.1,2498.7,2.3988]
[1724853710086,5.4955,2499.9,2498.3,4.00267]
[1724853710087,4.00167,2499.0,2498.3,6.41788]
[1724853710261,4.00139,2499.2,2498.4,0.08003323]
[1724853710627,5.4955,2499.9,2498.3,2.4152]
[1724853710628,4.00199,2498.8,2498.3,2.4152]
[1724853710789,3.0,2499.8,2498.3,2.4152]
[1724853710790,4.00172,2499.0,2498.3,2.4152]
[1724853710951,4.00131,2499.2,2498.5,4.00234]
[1724853711312,4.00178,2498.9,2498.3,2.4152]
[1724853711457,4.00148,2499.1,2498.4,4.00254]
[1724853712076,4.00148,2499.1,2498.3,2.4152]
[1724853712077,4.00187,2498.9,2498.3,2.4152]
[1724853712398,4.00149,2499.1,2498.5,4.00236]
[1724853712557,4.00149,2499.1,2498.4,4.00242]
[1724853712959,4.00138,2499.2,2498.5,0.08002916]
[1724853713160,4.00117,2499.3,2498.6,4.0022]
[1724853713497,4.00139,2499.2,2498.7,0.08002758]
[1724853713683,4.00145,2499.1,2498.4,4.00242]
[1724853714065,4.00086,2499.5,2498.9,4.00176]
[1724853714260,0.08036329,2499.4,2498.4,4.644242]
[1724853714482,4.00185,2498.9,2498.3,2.4152]
[1724853714732,4.00185,2498.9,2497.8,8.52999452]
[1724853714733,4.00252,2498.5,2497.8,4.00342]
[1724853715019,4.08217329,2498.9,2498.1,2.3084]
[1724853715230,4.00181,2498.9,2498.2,4.00278]
[1724853715519,0.08036329,2498.8,2498.1,2.3084]
[1724853715720,4.00116,2499.3,2497.9,0.08005258]
[1724853715721,4.00243,2498.5,2497.9,0.08005258]
[1724853715882,4.0024,2498.5,2497.9,0.08005258]
[1724853716086,4.00281,2498.3,2497.9,0.08005258]
[1724853716395,4.00288,2498.2,2497.7,2.3859]
[1724853716595,8.00498,2498.5,2497.8,0.08005868]
[1724853716820,4.00246,2498.5,2497.8,4.08344868]
[1724853716994,8.00557,2498.3,2497.7,2.3859]
[1724853717316,4.00246,2498.5,2497.8,4.08346938]
[1724853717520,4.00273,2498.3,2497.8,4.08346938]
[1724853717824,4.00273,2498.3,2497.8,0.08005938]
[1724853718027,4.00403,2497.5,2497.2,2.383]
[1724853718197,4.00372,2497.7,2497.2,2.383]
[1724853718396,4.0034,2497.9,2497.3,0.08007541]
[1724853718932,4.00276,2498.3,2497.4,4.004]
[1724853719082,4.00317,2498.1,2497.4,4.004]
[1724853719284,0.08036329,2498.0,2497.2,6.38742]
[1724853719550,3.48882086,2498.7,2497.2,2.383]
[1724853719551,4.00427,2497.4,2497.2,2.383]
[1724853719724,0.48882086,2498.3,2496.7,2.4837]
[1724853719725,4.00478,2497.1,2496.7,2.4837]
[1724853720034,4.00344,2497.9,2496.7,2.4837]
[1724853720035,4.00512,2496.8,2496.7,2.4837]
[1724853720251,2.4024,2497.6,2496.2,2.2726]
[1724853720385,4.00564,2496.5,2496.2,2.2726]
[1724853720585,4.00532,2496.7,2496.2,2.2726]
[1724853720843,4.00532,2496.7,2496.2,2.7307895]
[1724853721133,4.00592,2496.3,2496.2,0.4581895]
[1724853721338,8.01184,2496.3,2496.2,0.4581895]
[1724853721547,12.09812329,2496.3,2496.2,0.4581895]
[1724853721843,15.09812329,2496.3,2496.2,0.4581895]
[1724853722056,19.10404329,2496.3,2496.2,9.5e-06]
[1724853722258,19.10404329,2496.3,2495.6,0.122358]
[1724853722259,12.02067,2495.7,2495.6,0.122358]
[1724853722428,8.01378,2495.7,2495.6,0.122358]
[1724853723428,8.09414329,2495.7,2495.6,0.122358]
[1724853723729,4.08725329,2495.7,2495.6,0.122358]
[1724853723932,4.00689,2495.7,2495.6,0.122358]
[1724853724547,4.00613,2496.2,2495.6,0.122358]
[1724853724861,4.00689,2495.7,2495.6,0.122358]
[1724853725152,0.08036329,2496.1,2495.6,0.122358]
[1724853725366,8.01378,2495.7,2495.6,0.122358]
[1724853725532,8.09414329,2495.7,2495.6,0.122358]
[1724853725753,12.10103329,2495.7,2495.6,0.122358]
[1724853726052,8.09414329,2495.7,2495.6,0.122358]
[1724853726562,4.00662,2495.9,2495.6,0.122358]
[1724853726764,4.00593,2496.3,2495.6,0.122358]
[1724853726945,4.00593,2496.3,2495.7,2.41322261]
[1724853727132,4.00639,2496.1,2495.7,2.41322261]
[1724853727337,4.00614,2496.2,2495.7,3.06749767]
[1724853727533,4.00602,2496.3,2495.7,2.41322261]
[1724853727734,4.00503,2496.9,2495.7,3.06747167]
[1724853728084,4.00566,2496.5,2495.7,2.98735026]
[1724853728288,4.00563,2496.5,2495.8,4.00663]
[1724853728491,4.00563,2496.5,2495.9,4.00655]
[1724853728694,4.00535,2496.7,2496.1,4.00615]
[1724853728903,4.00535,2496.7,2495.9,1.0899983]
[1724853728904,0.08036329,2496.7,2495.9,1.0899983]
[1724853729181,4.0047,2497.1,2495.8,4.00662]
[1724853729182,4.00563,2496.5,2495.8,4.00663]
[1724853729435,4.08518329,2497.0,2496.0,0.05528611]
[1724853729436,4.00637,2496.1,2496.0,0.05528611]
[1724853729594,4.00637,2496.1,2495.9,0.05033652]
[1724853729595,8.01275,2496.1,2495.9,0.05033652]
[1724853729904,4.00565,2496.5,2496.0,0.05528611]
[1724853730041,4.0054,2496.7,2496.0,0.05528611]
[1724853730242,0.08036329,2496.9,2496.2,4.00608]
[1724853730243,4.08545329,2496.9,2496.2,4.00608]
[1724853730467,4.00472,2497.1,2496.5,2.4465]
[1724853730789,4.00436,2497.3,2496.6,4.13946399]
[1724853730990,4.00406,2497.5,2496.9,4.00494]
[1724853731284,4.08410329,2497.7,2496.7,0.6585964]
[1724853731285,4.00475,2497.1,2496.7,0.6585964]
[1724853731483,0.08036329,2497.4,2496.5,2.4465]
[1724853731484,4.00368,2497.7,2497.0,4.05827134]
[1724853731684,4.00368,2497.7,2497.2,2.4465]
[1724853731990,4.00343,2497.9,2497.3,4.13764669]
[1724853732205,0.08036329,2498.1,2497.3,0.05335939]
[1724853732406,4.00309,2498.1,2497.4,4.00404]
[1724853732562,8.00596,2498.2,2497.5,4.08404612]
[1724853732895,4.00261,2498.4,2497.6,4.00373]
[1724853733217,4.0023,2498.6,2497.9,2.4465]
[1724853733424,4.0023,2498.6,2498.0,0.72504622]
[1724853733707,0.5007046,2498.9,2498.1,4.00303]
[1724853733708,4.00198,2498.8,2498.1,4.00303]
[1724853733920,4.00162,2499.0,2497.9,2.4465]
[1724853734214,4.00162,2499.0,2498.3,4.00257]
[1724853734539,0.4906733,2499.3,2498.0,0.24465]
[1724853734540,4.00124,2499.3,2498.4,6.49695353]
[1724853734675,4.00156,2499.1,2498.5,0.64969535]
[1724853735284,4.00161,2499.0,2498.5,0.64969535]
[1724853735484,4.00136,2499.2,2498.4,6.41725]